Cogmind - Beta 14 @@@ ROGUE MODE // 2024.09.01 @ 10:35:15 Player: Epsilon 11 Result: Self-destructed Performance ------------- Evolutions (1) 500 Regions Visited (5) 1000 Robots Destroyed (42) 210 Value Destroyed (632) 632 Prototype IDs (41) 820 Alien Tech Used (0) 0 Bonus (327) 327 TOTAL SCORE: 3489 Bonus ------- High Alert Combat Kills 27 Aligned with FarCom 300 Cogmind --------- Core Integrity 112/400 Matter 179/300 Energy 170/170 System Corruption 0% Temperature Cool (0) Movement Walking (130) Location -9/Exiles Parts ------- > --- POWER (1) -------- Makeshift Power Source > --- PROPULSION (2) --- Improved Aluminum Leg Makeshift Leg > --- UTILITY (3) ------ Medium Storage Unit > --- WEAPON (3) ------- Pulse Rifle AWS/Gauss > --- INVENTORY (10) --- Aluminum Leg Makeshift Leg Cooling System High-capacity Matter Pod (70) Maul Peak State ------------ > --- POWER ------------ Light Ion Engine > --- PROPULSION ------- Carbon-fiber Leg VSS Leg > --- UTILITY ---------- Small Storage Unit Core Shielding Reactive Plating > --- WEAPON ----------- AWS/Gauss Improved Datajack > --- INVENTORY -------- Fission Core Fission Core Light Fission Core VSS Leg Cooling System Grenade Launcher [Rating: 33] Favorites ----------- Power Ion Engine Engine Ion Engine Propulsion VSS Leg Leg VSS Leg Wheel Compact Wheel Utility Small Storage Unit Device Cooling System Storage Small Storage Unit Protection Core Shielding Weapon Light EM Pulse Cannon Energy Gun Pulse Rifle Energy Cannon Light EM Pulse Cannon Ballistic Gun AWS/Gauss Launcher Grenade Launcher Impact Weapon Maul Special Melee Weapon Improved Datajack Build | -11 -10 -10 -9 -9 -9 ------- Run | Yrd Mat Min Mat Min Exi Slots Evolved 2 | . . . 2 . . Power . | . . . . . . Propulsion . | . . . . . . Utility 1 | . . . 1 . . Weapon 1 | . . . 1 . . Parts Attached 43 | 6 4 2 3 11 17 Power 3 | 1 . . . 1 1 Engine 3 | 1 . . . 1 1 Core . | . . . . . . Reactor . | . . . . . . Propulsion 12 | 2 . 2 . 2 6 Treads . | . . . . . . Leg 10 | . . 2 . 2 6 Wheel 2 | 2 . . . . . Hover . | . . . . . . Flight . | . . . . . . Utility 9 | 1 1 . 2 3 2 Device 1 | . . . . 1 . Storage 3 | 1 . . . . 2 Processor . | . . . . . . Hackware . | . . . . . . Protection 5 | . 1 . 2 2 . Artifact . | . . . . . . Weapon 19 | 2 3 . 1 5 8 Energy Gun 3 | . . . 1 1 1 Energy Cannon 5 | . 3 . . 1 1 Ballistic Gun 4 | 2 . . . . 2 Ballistic Cannon . | . . . . . . Launcher 4 | . . . . 2 2 Special Weapon . | . . . . . . Impact Weapon 2 | . . . . 1 1 Slashing Weapon . | . . . . . . Piercing Weapon . | . . . . . . Special Melee Weapon 1 | . . . . . 1 Unidentified Prototypes . | . . . . . . Parts Lost 12 | . . . . 4 8 Power 2 | . . . . 1 1 Propulsion 4 | . . . . 1 3 Utility 3 | . . . . 1 2 Weapon 3 | . . . . 1 2 Highest Loss Streak 3 | . . . . 2 3 To Critical Strikes 2 | . . . . . 2 Average Slot Usage (%) 87 | . 88 99 100 95 80 Engine 10 | . 14 14 11 10 9 Leg 18 | . . 26 22 22 18 Wheel 2 | . 28 1 . . . Storage 11 | . 14 14 11 11 11 Protection 15 | . 3 14 22 20 14 Energy Gun 8 | . . . 11 10 9 Energy Cannon 12 | . 26 28 22 13 6 Ballistic Gun 2 | . 1 . . . 4 Launcher 1 | . . . . 4 1 Special Melee Weapon 2 | . . . . . 4 Peak Build Rating 33 | 6 9 14 20 20 33 Average Rating 19 | 4 8 13 19 17 23 On Entrance 11 | . 6 9 14 19 18 Naked Turns . | . . . . . . Heaviest Build 32 | 13 19 19 27 28 32 Greatest Support 33 | 26 26 27 27 27 33 Greatest Overweight (x) 5 | . . 1 . 1 5 Average Overweight (x) . | . . . . . . Largest Inventory Capacity 10 | 8 8 8 8 8 10 Average Capacity 8 | 7 8 8 8 8 8 Most Carried 8 | 1 5 8 8 8 8 Average Carried 5 | . 4 7 7 7 4 Final Capacity 10 | 8 8 8 8 8 10 Final Carried 8 | 1 5 8 8 6 5 Class Distribution -------------------- 60% | Mutant 22% | Tank 17% | Gunner Dominant Class ---------------- Mutant | -10/Materials Mutant | -10/Mines Tank | -9/Materials Tank | -9/Mines Mutant | -9/Exiles Resources | -11 -10 -10 -9 -9 -9 ----------- Run | Yrd Mat Min Mat Min Exi Matter Collected 844 | 149 47 124 30 175 319 Remotely . | . . . . . . Salvage Created 843 | . 96 79 176 293 199 Parts 85 | . 9 4 7 31 34 Haulers Intercepted . | . . . . . . Recyclers Shooed . | . . . . . . Parts Field Recycled . | . . . . . . Retrieved Matter . | . . . . . . Parts Self-Destructed . | . . . . . . Prevented . | . . . . . . Kills | -11 -10 -10 -9 -9 -9 ------- Run | Yrd Mat Min Mat Min Exi Combat Hostiles Destroyed 29 | . 3 3 4 15 4 Guns 5 | . . . 1 3 1 Cannons 6 | . 1 1 2 2 . AOE 16 | . 2 2 1 8 3 Classes Destroyed 10 | . 2 1 2 2 3 Worker 1 | . . . . 1 . Builder 2 | . . . . 2 . Turret 1 | . . . . . 1 Watcher 2 | . 2 . . . . Swarmer 16 | . 3 2 . 11 . Grunt 7 | . . 1 2 4 . Brawler 1 | . . . 1 . . Sentry 1 | . . . 1 . . Zionite 8 | . . . . . 8 Assembled 3 | . . . . . 3 Best Kill Streak 5 | . 5 2 3 5 3 Combat Bots Only 5 | . 3 2 3 5 3 Max Kills in Single Turn 3 | . 3 1 1 3 1 Gunslinging . | . . . . . . Exploded 2 | . 2 1 1 2 1 Melee . | . . . . . . Uniques/NPCs Destroyed 4 | . . . . . 4 8R-AWN (-9/Exiles) EX-HEX (-9/Exiles) EX-BIN (-9/Exiles) EX-DEC (-9/Exiles) Combat | -11 -10 -10 -9 -9 -9 -------- Run | Yrd Mat Min Mat Min Exi Hostile Shots Fired 186 | . 4 4 21 63 94 Missed 54 | . 1 1 7 18 27 Damage Taken 1886 | . 48 52 141 513 1132 Core 296 | . 8 . 6 33 249 Absorbed by Shields . | . . . . . . Redirected to Shielding 43 | . . . 1 8 34 Ignored by Resistances 176 | . . . . . 176 Core Remaining (%) 98 | 100 . 96 . . . Volleys Fired 129 | . 6 4 12 24 83 Largest 3 | . 2 2 3 3 2 Hottest 175 | . 112 112 175 175 119 Shots Fired 191 | . 12 8 34 39 98 Gun 87 | . . . 11 12 64 Cannon 65 | . 12 8 23 15 7 Launcher 39 | . . . . 12 27 Special . | . . . . . . Kinetic 8 | . . . . . 8 Thermal 79 | . . . 11 12 56 Explosive 39 | . . . . 12 27 Electromagnetic 65 | . 12 8 23 15 7 Robot Hit Streak 33 | . 2 4 6 13 33 Robot Miss Streak 3 | . 3 1 3 2 2 Penetration Max . | . . . . . . Secondary Targets . | . . . . . . Autonomous 8 | . . . . . 8 Shots Hit Robots 149 | . 4 6 22 22 95 Core Hits 74 | . 5 3 7 20 39 Critical Kills . | . . . . . . Critical Parts Destroyed 8 | . . . . 1 7 Critical Strikes 12 | . . . 1 1 10 Burn 2 | . . . 1 . 1 Smash 10 | . . . . 1 9 Melee Attacks 36 | . . . . 3 33 Impact 32 | . . . . 3 29 Slashing . | . . . . . . Piercing . | . . . . . . Sneak Attacks 4 | . . . . . 4 Combat Hostiles . | . . . . . . Follow-up Attacks . | . . . . . . Damage Inflicted 4329 | . 273 203 517 967 2369 Guns 1188 | . . . 135 135 918 Cannons 760 | . 191 130 271 158 10 Explosions 1332 | . 82 73 111 603 463 Melee 1049 | . . . . 71 978 Ramming . | . . . . . . Kinetic 184 | . . . . . 184 Thermal 1270 | . 82 73 246 135 734 Explosive 1066 | . . . . 603 463 Electromagnetic 760 | . 191 130 271 158 10 Impact 1049 | . . . . 71 978 Slashing . | . . . . . . Piercing . | . . . . . . Highest Corruption . | . . . . . . Average Corruption . | . . . . . . Corruption Purged . | . . . . . . Corruption Blocked . | . . . . . . Overload Shots . | . . . . . . Overflow Damage 443 | . 16 . . 130 297 Projectiles 16 | . 16 . . . . Explosions 88 | . . . . 79 9 Melee 339 | . . . . 51 288 Knockbacks 5 | . . . . 1 4 Impact 5 | . . . . 1 4 Kinetic . | . . . . . . Secondary . | . . . . . . Self-Inflicted Damage 169 | . 24 17 . 76 52 Shots 8 | . 1 1 . 4 2 Rammed . | . . . . . . Targets Rammed . | . . . . . . Kicked . | . . . . . . Crushed . | . . . . . . Highest Temperature 405 | . 153 114 405 360 292 Average Temperature 110 | . 65 56 171 128 77 Received Heat Transfer 207 | . . . 72 135 . Effects 2 | . . . 2 . . Damage (minor) 2 | . . . 2 . . Siege Activations . | . . . . . . Robots Corrupted 2 | . . . . 2 . Combat Hostiles 2 | . . . . 2 . Parts Fried 5 | . 3 . . 2 . Impact Corruptions 13 | . . . . 3 10 Robots Melted . | . . . . . . Combat Hostiles . | . . . . . . Parts Melted 5 | . . . . . 5 Heat Transferred 2337 | . 100 100 420 296 1421 Parts Sabotaged . | . . . . . . Parts Stolen . | . . . . . . Parts Stripped . | . . . . . . Power Chain Reactions 5 | . 1 2 2 . . Alert | -11 -10 -10 -9 -9 -9 ------- Run | Yrd Mat Min Mat Min Exi Peak Influence 553 | . 166 163 231 553 . Initial 90 | . . 64 . 90 . Average 203 | . 128 102 105 359 . Maximum Alert Level 2 | . . . 1 2 . Low Security (%) 67 | 100 100 100 92 17 . Level 1 21 | . . . 7 54 . Level 2 10 | . . . . 28 . Level 3 . | . . . . . . Level 4 . | . . . . . . Level 5 . | . . . . . . High Security . | . . . . . . Max Security . | . . . . . . Squads Dispatched 2 | . 1 . 1 . . Investigation 1 | . 1 . . . . Extermination . | . . . . . . Reinforcement 1 | . . . 1 . . Assault . | . . . . . . Garrison . | . . . . . . Intercept . | . . . . . . Searches Triggered . | . . . . . . Construction Impeded . | . . . . . . Haulers Reinforced . | . . . . . . Active Scanning Responses . | . . . . . . Cargo Convoy Interrupts . | . . . . . . Stealth | -11 -10 -10 -9 -9 -9 --------- Run | Yrd Mat Min Mat Min Exi Distress Signals 3 | . 1 . 2 . . Communications Jammed . | . . . . . . Distress Signals . | . . . . . . Times Spotted 87 | . 6 4 14 19 44 Peak Tracking Total 9 | . 5 3 5 5 9 Tactical Retreats 23 | . 1 1 1 3 17 Traps | -11 -10 -10 -9 -9 -9 ------- Run | Yrd Mat Min Mat Min Exi Traps Triggered . | . . . . . . Indirectly . | . . . . . . Trap Hack Attempts . | . . . . . . Triggered . | . . . . . . Disarmed . | . . . . . . Reprogrammed . | . . . . . . Reused . | . . . . . . Traps Extracted . | . . . . . . Installed . | . . . . . . Triggered . | . . . . . . Machines | -11 -10 -10 -9 -9 -9 ---------- Run | Yrd Mat Min Mat Min Exi Machines Disabled 8 | . . . . . 8 Max in Single Turn 2 | . . . . . 2 Machines Repaired . | . . . . . . Machines Dismantled . | . . . . . . Machines Sabotaged . | . . . . . . Overloaded Fab Kills . | . . . . . . Hacking | -11 -10 -10 -9 -9 -9 --------- Run | Yrd Mat Min Mat Min Exi Machines Accessed 13 | . 5 1 5 . 2 Terminals 10 | . 5 . 5 . . Fabricators . | . . . . . . Repair Stations . | . . . . . . Recycling Units . | . . . . . . Scanalyzers . | . . . . . . Garrison Access . | . . . . . . Total Hacks 57 | . 11 1 21 . 24 Successful 38 | . 3 1 10 . 24 Failed 19 | . 8 . 11 . . Catastrophic 5 | . 2 . 3 . . Database Lockouts . | . . . . . . Manual 21 | . 2 . 18 . 1 Terminals 32 | . 11 . 21 . . Fabricators . | . . . . . . Repair Stations . | . . . . . . Recycling Units . | . . . . . . Scanalyzers . | . . . . . . Garrison Access . | . . . . . . Terminal Hacks 33 | . 3 1 5 . 24 Record 23 | . . . . . 23 Prototype ID Bank 2 | . 1 . 1 . . Open Door 1 | . . 1 . . . Branch Access Points 1 | . . . 1 . . Terminal Index 1 | . . . 1 . . Locate Traps 1 | . 1 . . . . Recall Investigation 1 | . 1 . . . . Hauler Manifests 1 | . . . 1 . . Registered Components 1 | . . . 1 . . Derelict Proto ID Bank 1 | . . . . . 1 Fabricator Hacks . | . . . . . . Repair Station Hacks . | . . . . . . Recycling Unit Hacks . | . . . . . . Scanalyzer . | . . . . . . Garrison Access Hacks . | . . . . . . Unauthorized Hacks 5 | . . . 5 . . Terminals 5 | . . . 5 . . Botnet 4 | . . . 4 . . Operators 1 | . . . 1 . . Fabricators . | . . . . . . Repair Stations . | . . . . . . Recycling Units . | . . . . . . Scanalyzers . | . . . . . . Garrison Access . | . . . . . . Data Cores Recovered . | . . . . . . Used . | . . . . . . Hacking Detections 10 | . 5 . 5 . . Full Trace Events 1 | . 1 . . . . Feedback Events . | . . . . . . Feedback Blocked . | . . . . . . Robot Schematics Acquired . | . . . . . . Robots Built . | . . . . . . Authchips . | . . . . . . Time . | . . . . . . Total Robot Build Rating . | . . . . . . Part Schematics Acquired . | . . . . . . Parts Built . | . . . . . . Authchips . | . . . . . . Time . | . . . . . . Total Part Build Rating . | . . . . . . Parts Repaired . | . . . . . . Time . | . . . . . . Parts Recycled . | . . . . . . Recycled Matter . | . . . . . . Retrieved Matter . | . . . . . . Retrieved Components . | . . . . . . Parts Scanalyzed . | . . . . . . Part Schematics Acquired . | . . . . . . Parts Damaged . | . . . . . . Bothacking | -11 -10 -10 -9 -9 -9 ------------ Run | Yrd Mat Min Mat Min Exi Used RIF Installer . | . . . . . . Robots Hacked 4 | . . . . . 4 Non-combat 3 | . . . . . 3 Combat 1 | . . . . . 1 Robot Hacks Applied 4 | . . . . . 4 parse_system 4 | . . . . . 4 Relay Couplers Released . | . . . . . . Fabnet Peak Effective % . | . . . . . . Robots Rewired . | . . . . . . Allies Hacked . | . . . . . . Hacks Repelled . | . . . . . . Allies | -11 -10 -10 -9 -9 -9 -------- Run | Yrd Mat Min Mat Min Exi Total Allies . | . . . . . . Largest Group . | . . . . . . Highest-Rated Group . | . . . . . . Highest-Rated Ally . | . . . . . . Total Orders . | . . . . . . Ally Attacks . | . . . . . . Total Damage . | . . . . . . Kills . | . . . . . . Allies Corrupted . | . . . . . . Allies Melted . | . . . . . . Intel | -11 -10 -10 -9 -9 -9 ------- Run | Yrd Mat Min Mat Min Exi Robot Analysis Total . | . . . . . . Derelict Logs Recovered 1 | . . . . 1 . Drone Launches . | . . . . . . Drone Recoveries . | . . . . . . Exploration | -11 -10 -10 -9 -9 -9 ------------- Run | Yrd Mat Min Mat Min Exi Turns Passed 4526 | 39 387 400 370 728 2602 Spaces Moved 3329 | 33 368 346 289 516 1777 Core 52 | 2 . . . . 50 Treads . | . . . . . . Legs 2857 | . . 325 289 516 1727 Wheels 420 | 31 368 21 . . . Hover . | . . . . . . Flight . | . . . . . . Fastest Speed 50 | 50 90 90 105 90 90 Average Speed 116 | 87 90 104 105 122 124 Slowest Speed 300 | 100 90 180 105 185 300 Overloaded Moves . | . . . . . . Propulsion Burnouts . | . . . . . . Robots Hopped . | . . . . . . Cave-ins Triggered . | . . . . . . Exploration Rate (%) 54 | 3 51 55 36 92 91 Regions Visited 5 Branch Regions 3 Pre-discovered Areas 2 | . . . . 1 1 Known Exits Taken 1 | . . . 1 . . Unknown Exits Taken 4 | 1 1 1 . 1 . Scrap Searched . | . . . . . . Spaces Dug 10 | . . . . 10 . Terrain Destroyed 165 | . 2 14 13 90 46 Melee . | . . . . . . Projectile . | . . . . . . AOE 165 | . 2 14 13 90 46 Terrain Rammed . | . . . . . . Walls Destroyed . | . . . . . . Machines Disabled . | . . . . . . Actions | -11 -10 -10 -9 -9 -9 --------- Run | Yrd Mat Min Mat Min Exi Total 3743 | 39 411 377 331 570 2015 Wait 150 | . 29 19 19 14 69 Move 3324 | 32 367 345 288 515 1777 Hop . | . . . . . . Pick Up 28 | 1 2 3 5 . 17 Fast Attach 18 | 6 4 2 1 1 4 Attach 13 | . . . 2 5 6 Detach 8 | . 2 2 . 3 1 Swap 12 | . . . . 5 7 Drop 25 | . 1 2 4 . 18 Fire 129 | . 6 4 12 24 83 Melee 36 | . . . . 3 33 Ram . | . . . . . . Kick . | . . . . . . Crush . | . . . . . . Escape Stasis . | . . . . . . Rewire . | . . . . . . Trap . | . . . . . . Miscellaneous . | . . . . . . Route ------- -11/Scrapyard -10/Materials (discovered 3 exits: *Mat / *Min x2) -10/Mines -9/Materials (discovered 2 exits: [*Mat] / *Min) -9/Mines (discovered 3 exits: [*Mat x2] / *Exi) -9/Exiles (discovered 2 exits: [*Min x2]) History --------- Turn | Location | Event 2 | -11/Scrapyard | Met Revision 17 15 | -11/Scrapyard | Discovered new exit (range 15) 40 | -11/Scrapyard | Entered Materials 162 | -10/Materials | Discovered new exit (range 13) 189 | -10/Materials | Discovered new exit (range 7) 227 | -10/Materials | Discovered new exit (range 15) 304 | -10/Materials | Build established: Mutant 427 | -10/Materials | Entered Mines 444 | -10/Mines | Met a Derelict who couldn't figure out how to use a Trap Extractor 557 | -10/Mines | Discovered new exit (range 10) 827 | -10/Mines | Entered Materials 827 | -9/Materials | Evolved 2 slots: Utility x1, Weapon x1 1079 | -9/Materials | Discovered new exit (range 16) 1092 | -9/Materials | Identified exit to Mines 1120 | -9/Materials | Build established: Tank 1197 | -9/Materials | Entered Mines 1249 | -9/Mines | Discovered new exit (range 10) 1275 | -9/Mines | Met a Derelict bent on vengeance 1391 | -9/Mines | A Derelict revealed a hidden shortcut to a safe place 1555 | -9/Mines | A weapon hastily lodged in a ceiling crevice suddenly fell to the ground 1671 | -9/Mines | Learned location of Recycling (-8) 1889 | -9/Mines | Discovered new exit (range 7) 1921 | -9/Mines | Deemed a non-threat by the Exiles lab entrance 1921 | -9/Mines | Discovered new exit (range 5) 1925 | -9/Mines | Entered Exiles 1942 | -9/Exiles | Discovered new exit (range 15) 1953 | -9/Exiles | Met 8R-AWN 1970 | -9/Exiles | Met EX-HEX 2008 | -9/Exiles | Met EX-DEC 2031 | -9/Exiles | Visited The Gauntlet 2180 | -9/Exiles | Build established: Mutant 2205 | -9/Exiles | Learned location of Zion (-7) 2227 | -9/Exiles | Met EX-BIN 2440 | -9/Exiles | Aligned with FarCom system 2441 | -9/Exiles | Given EX-Vault access code 2475 | -9/Exiles | Opened EX-Vault 2481 | -9/Exiles | Found AWS/Gauss 2502 | -9/Exiles | Warned to stay clear of 0b10 Research branches 2717 | -9/Exiles | Discovered new exit (range 12) 3186 | -9/Exiles | Found Chronowheel 3405 | -9/Exiles | Attacked by the Exiles 3644 | -9/Exiles | Lost 3 parts (1p1n1u) 3717 | -9/Exiles | Destroyed 8R-AWN 3774 | -9/Exiles | Core integrity fell below 50% 3806 | -9/Exiles | Lost 3 parts (1n2w) 3943 | -9/Exiles | Destroyed EX-HEX 4000 | -9/Exiles | Destroyed EX-BIN 4020 | -9/Exiles | Destroyed EX-DEC 4024 | -9/Exiles | Build established: Gunner 4527 | -9/Exiles | Self-destructed Last Messages --------------- 04020_ EX-DEC destroyed. 04166_ W1-DM0 destroyed. 04174_ DK-RAY destroyed. 04183_ Acquired 15 matter. 04185_ Acquired 17 matter. 04203_ Mak. Salvage Targeting Computer melted. 04203_ J5-HVA destroyed. 04224_ Acquired 22 matter. 04228_ Acquired Imp. Aluminum Leg. 04243_ Acquired Aluminum Leg. 04264_ AM-PHS suffers critical hit (Burn). 04264_ AM-PHS destroyed. 04274_ Acquired 24 matter. 04331_ GM-J5T destroyed. 04339_ Acquired 16 matter. 04422_ Acquired Med. Storage Unit. 04424_ Dropped Sml. Storage Unit. 04449_ Acquired 7 matter. 04505_ ZX-C33 destroyed. 04507_ Acquired 24 matter. Map ----- +----------------------------------------------------+ | ???????????????????????#" " | | ???????????????????????#"""" ""## # | | ???????????????????????#"" ""#### # | | ???????????????????????#" """"##??# # | | ???????????????????????#""" """#??## # | | ???????????????????????## ""##??# | | ????????????????????????#"" """##???#" | | ????????????????????????##"" ##????#" | | ?????????????????????????##"" " ##?????#!!"" | | ??????????????????????????### #??????##### | | ????????????????????????????##### ##??????????? | | ????????????????????????????????## #???????????? | | ?????????????????????????????????# #???????????? | | ?????????????????????????????????# #???????????? | | ?????????????????????????????????# #???????????? | | ??#####????????????????####??????# #???????????? | | #""""""???????"""""???#""""""????# #???????????? | | ?"" "?????"""""""???#"""""""#??# #???????????? | | #" ????"""""" "#??#" """"#??# #???????????? | | ?"" "?#""#""" """???#"" """#??# #???????????? | | ?"" "?#""#"" ""????"" ""???# #???????????? | | ###"""###""###"""########"""###### ! ########????? | | "" """"""" """"""" """""" """""""#????? | | """""" """"""!! "#"" "? | | !! !%!!%!! " "" | | !!&! !!!!! @ " " " | | [!%!! !*! " ""? | | "" !!! "" #"" "? | | """ """""" * " """"" " """" """""#????? | | ###"""########"""###""###"""########"""######????? | | ?"" "?????"" ""#""#"" ""?????" ""????????? | | ?""" ""????#""" ""#""#""" ""#????" """#???????? | | #" """ ????#" """"""""#" " "#????""""""#???????? | | ?""""""?????"""""""????"""""""#????" """"????????? | | ???""?"?????"""""""????"""""""#????"""""?????????? | | ?????????????????????????####????????#???????????? | | ?????????????????????????????????????????????????? | | ?????????????????????????????????????????????????? | | ?????????????????????????????????????????????????? | | ?????????????????????????????????????????????????? | | | | | | | | | | | | | | | | | | | | | +----------------------------------------------------+ Best States ------------- Heat Dissipation 50 Energy Generation 15 Energy Capacity 250 Matter Stores 300 Matter Capacity 300 Sight Range 16 Terrain Scan Density 10 Armor Coverage 150 Resistance: KI 20 Resistance: EM 15 Core Shielding 20 Evasion (%) 57 Item Schematics ----------------- None Robot Schematics ------------------ None Fabricated ------------ Nothing Alien Tech Used ----------------- None Achievements -------------- None Challenges ------------ None Game ------ Seed UltimateCloakStripper Manual? 0 Play Time 00:55:54 Cumulative 152.5 hours Start 2024.09.01 @ 09:23:12 End 2024.09.01 @ 10:35:15 Sessions 1 Manual Loads 0 Difficulty Rogue Special Mode None Game No. 69 Rogue 26 Adventurer 43 Explorer 0 Win Type - Total 4 Types 2/0/1/0/0/0/0/1/0 Lore% 60 Gallery% 66 Achievement% 58 Wizard Run 0 Options --------- Layout 0 ASCII 0 Keyboard 0 Movement Mouse Keybinds 0 Fullscreen 1 Font 24/Smallcaps Map View 76x50 Zoom Use 0% Tactical HUD 1 Map Filters NONE Filters NONE Steam 1 RUN: 15d148b3-20b8-4c39-a161-439c4ebe4844